fUSD/lending_fUSD_20251110
["ID","MTS","AMOUNT","RATE_DAILY","PERIOD"]
[393575275,1762805985545,-578.77261784,0.00042,30]
[393575276,1762805985584,-977.8460973,0.00042,120]
[393575277,1762805985624,-1006.47162705,0.00042,120]
[393575278,1762805985663,-593.30340355,0.00042,30]
[393575279,1762805985701,-157.13655122,0.00042,120]
[393575280,1762805985744,-200.0,0.00042,120]
[393575281,1762805985784,-150.0,0.00042,60]
[393575282,1762805985823,-150.0,0.00042035,30]
[393575283,1762805985866,-196.77996229,0.00042035,30]
[393575284,1762805985909,-150.0,0.00042035,30]
[393575285,1762805985950,-9147.97122952,0.00042035,30]
[393575286,1762805985991,-150.0,0.00042035,30]
[393575287,1762805986033,-1236.08,0.00042062,120]
[393575288,1762805986074,-1784.24561751,0.00042121,120]
[393575289,1762805986115,-200.62837306,0.00042388,120]
[393575290,1762805986158,-150.0,0.00042414,120]
[393575291,1762805986198,-511.24643562,0.000425,120]
[393575292,1762805986243,-157.37982075,0.00042521,30]
[393575293,1762805986287,-150.0,0.00042791,120]
[393575294,1762805986327,-5335.86,0.000428,120]
[393575295,1762805986367,-5000.0,0.000429,120]
[393575296,1762805986408,-1673.02776087,0.000429,120]
[393575297,1762805986447,-530.69144623,0.000429,120]
[393575298,1762805986486,-408.13931106,0.000429,120]
[393575299,1762805986527,-222.71783791,0.00042936,120]
[393575300,1762805986568,-211.0,0.0004295,30]
[393575301,1762805986610,-2878.60688777,0.00043,120]
[393575302,1762805986651,-1000.0,0.00043,120]
[393575303,1762805986692,-2301.10091997,0.00043,120]
[393575304,1762805986732,-1362.30099628,0.00043,120]
[393575305,1762805986773,-150.0,0.00043,120]
[393575306,1762805986814,-196.12635945,0.00043,120]
[393575307,1762805986855,-2407.23726001,0.00043,120]
[393575308,1762805986895,-178.38536755,0.00043,120]
[393575309,1762805986934,-1255.32353139,0.00043,120]
[393575310,1762805986975,-1364.77671766,0.000431,120]
[393575311,1762805987017,-1520.16511717,0.000432,120]
[393575312,1762805987060,-1267.7756,0.0004322,30]
[393575313,1762805987099,-1358.66961629,0.0004328,120]
[393575314,1762805987139,-571.91663503,0.000433,120]
[393575315,1762805987179,-200.62837306,0.00043301,120]
[393575316,1762805987221,-180.37988714,0.000435,120]
[393575317,1762805987270,-150.0,0.00043526,120]
[393575318,1762805987314,-222.44773578,0.00043562,120]
[393575319,1762805987356,-150.0,0.0004358,120]
[393575320,1762805987397,-2572.06,0.000436,30]
[393575321,1762805987439,-538.84831656,0.000437,120]
[393575322,1762805987481,-150.0,0.00043713,120]
[393575323,1762805987521,-462.07562964,0.000438,120]
[393575324,1762805987560,-766.95,0.000438,120]
[393575325,1762805987597,-30000.0,0.000438,30]
[393575326,1762805987635,-600.0,0.00043836,34]
[393575327,1762805987673,-2880.67994473,0.00043987,120]
[393575328,1762805987715,-15877.57128067,0.00043988,120]
[393575329,1762805987757,-791.73381,0.00043999,120]
[393575330,1762805987795,-262.85273536,0.00044,120]
[393575331,1762805987833,-1063.45698295,0.00044,120]
[393575332,1762805987871,-155.0,0.00044,120]
[393575333,1762805987910,-424.89846769,0.00044,30]
[393575334,1762805987952,-576.31665279,0.00044,120]
[393575335,1762805988134,-166.68451253,0.00044,120]
[393575336,1762805988179,-3023.08241801,0.00044,120]
[393575337,1762805988223,-153.0,0.00044,120]
[393575338,1762805988265,-200.0,0.00044,120]
[393575339,1762805988308,-9496.86412184,0.00044,120]
[393575340,1762805988350,-1089.3,0.00044,120]
[393575341,1762805988391,-1927.12610635,0.00044,120]
[393575342,1762805988432,-827.2383433,0.00044,120]
[393575343,1762805988472,-150.0,0.00044,60]
[393575344,1762805988514,-700.0,0.00044,120]
[393575345,1762805988558,-2572.06,0.00044,30]
[393575346,1762805988601,-150.0,0.00044,57]
[393575347,1762805988645,-2000.0,0.00044,120]
[393575348,1762805988688,-2000.0,0.00044,120]
[393575349,1762805988730,-2432.21016953,0.00044,120]
[393575350,1762805988774,-200.2,0.00044,30]
[393575351,1762805988824,-20000.0,0.000442,60]
[393575352,1762805988870,-1673.02776087,0.000442,120]
[393575353,1762805988914,-530.69144623,0.000442,120]
[393575354,1762805988955,-408.13931106,0.000442,120]
[393575355,1762805988997,-200.62837306,0.00044214,120]
[393575356,1762805989042,-158.35749973,0.0004425,120]
[393575357,1762805989089,-150.0,0.0004434,120]
[393575358,1762805989132,-1499.999999,0.00044388,120]
[393575359,1762805989170,-2294.22,0.000444,30]
[393575360,1762805989212,-902.94,0.00044411,30]
[393575361,1762805989256,-902.94,0.00044411,30]
[393575362,1762805989298,-902.94,0.00044411,30]
[393575363,1762805989338,-902.94,0.00044411,30]
[393575364,1762805989379,-211782.20788632,0.00044444,120]
[393575365,1762805989419,-921.78197666,0.000445,120]
[393575366,1762805989460,-824.93920676,0.000445,120]
[393575367,1762805989500,-2572.06,0.000445,30]
[393575368,1762805989545,-902.94,0.00044685,30]
[393575369,1762805989587,-902.94,0.00044685,30]
[393575370,1762805989628,-153.0,0.000447,120]
[393575371,1762805989667,-289.79653886,0.00044762,120]
[393575372,1762805989705,-222.71783791,0.00044762,120]
[393575373,1762805989744,-407.72642559,0.000448,120]
[393575374,1762805989782,-549.11529782,0.0004489,120]
[393575375,1762805989822,-883.40674513,0.000449,30]
[393575376,1762805989860,-322.38500066,0.000449,120]
[393575377,1762805989898,-958.31403754,0.000449,120]
[393575378,1762805989937,-5000.0,0.000449,120]
[393575379,1762805989978,-902.94,0.00044959,30]
[393575380,1762805990017,-902.94,0.00044959,30]
[393575381,1762805990060,-211.0,0.0004496,30]
[393575382,1762805990104,-1281.44968315,0.00044998,120]
[393575383,1762805990151,-50000.0,0.00045,55]
[393575384,1762805990194,-910.1514532,0.00045,120]
[393575385,1762805990240,-782.95867285,0.00045,120]
[393575386,1762805990285,-10138.69682681,0.00045,120]
[393575387,1762805990331,-1900000.0,0.00045,120]
[393575388,1762805990372,-777.66004181,0.00045,120]
[393575389,1762805990416,-155.0,0.00045,120]
[393575390,1762805990457,-228.30714772,0.00045,120]
[393575391,1762805990499,-192.33194773,0.00045,120]
[393575392,1762805990542,-701.70019644,0.00045,120]
[393575393,1762805990584,-2197.56609532,0.00045,120]
[393575394,1762805990625,-635.80063811,0.00045,120]
[393575395,1762805990667,-2353.13045206,0.00045,120]
[393575396,1762805990708,-181.76843778,0.00045,30]
[393575397,1762805990751,-1358.77247947,0.00045,120]
[393575398,1762805990793,-178.63958713,0.00045,120]
[393575399,1762805990834,-1833.17517726,0.00045,120]
[393575400,1762805990883,-1000000.0,0.00045,120]
[393575401,1762805990924,-7639.0,0.00045,120]
[393575402,1762805990969,-36218.21,0.00045,120]
[393575403,1762805991015,-300000.0,0.00045,120]
[393575404,1762805991063,-1992.98,0.00045,120]
[393575405,1762805991111,-606411.7551082,0.00045,120]
[393575407,1762806332907,-254.634109,0.000154,2]
[393575408,1762806335460,-5316.69784683,0.000154,2]
[393575409,1762806344377,-77.46990864,0.000154,2]
[393575410,1762806344404,-9845.07018272,0.000154,2]
[393575411,1762806352463,11208.6437022,0.00015,10]
[393575412,1762806352867,10000.01,0.0001501,2]
[393575413,1762806352896,14908.28,0.0001501,2]
[393575414,1762806359654,-10000.01,0.0001501,2]
[393575415,1762806359997,-466.2479384,0.0001501,2]
[393575416,1762806360134,9067.5141232,8e-05,2]
[393575417,1762806360162,14326.62969087,8e-05,2]
[393575418,1762806363913,9348.40132574,0.00011,2]
[393575419,1762806369260,5869.619058,7.945e-05,2]
[393575420,1762806408838,-174.41,0.00016169,2]
[393575421,1762806408871,-195.0,0.00016201,2]
[393575422,1762806408908,-250.0,0.00016232,2]
[393575423,1762806408949,-1993.54283338,0.00016295,2]
[393575424,1762806408997,-250.0,0.00016389,2]
[393575425,1762806409029,-1000.0,0.00016411,2]
[393575426,1762806413722,5000.00380337,0.000162,5]
[393575427,1762806414776,-2751.0,0.00016425,2]
[393575428,1762806414808,-500.0,0.00016456,2]
[393575429,1762806414848,-166.66,0.00016458,2]
[393575430,1762806414884,-168.0,0.00016568,2]
[393575431,1762806414917,-1000.0,0.00016657,2]
[393575432,1762806414953,-166.66,0.00016804,2]
[393575433,1762806420794,-1259.46,0.00016897,2]
[393575434,1762806420831,-168.0,0.00016946,2]
[393575435,1762806420862,-250.0,0.00017,2]
[393575436,1762806420895,-300.0,0.0001701,2]
[393575437,1762806420927,-1200.0,0.0001701,2]
[393575438,1762806420959,-1200.0,0.00017011,2]
[393575439,1762806420989,-300.0,0.00017011,2]
[393575440,1762806424803,4898.88291143,0.00015,2]
[393575441,1762806426803,-990.93039264,0.00017012,2]
[393575442,1762806426836,-168.0,0.00017125,2]
[393575443,1762806426870,-168.0,0.00017129,2]
[393575444,1762806426901,-166.66,0.00017151,2]
[393575445,1762806426932,-300.0,0.00017163,2]
[393575446,1762806426962,-482.0,0.00017163,2]
[393575447,1762806426994,-151.0,0.00017164,2]
[393575448,1762806427024,-151.0,0.00017164,2]
[393575449,1762806427055,-151.0,0.00017164,2]
[393575450,1762806427086,-151.0,0.00017164,2]
[393575451,1762806427117,-151.0,0.00017164,2]
[393575452,1762806427148,-151.0,0.00017164,2]
[393575453,1762806427179,-151.0,0.00017164,2]
[393575454,1762806427210,-151.0,0.00017164,2]
[393575455,1762806427240,-151.0,0.00017164,2]
[393575456,1762806427271,-151.0,0.00017164,2]
[393575457,1762806427302,-151.0,0.00017164,2]
[393575458,1762806427333,-151.0,0.00017164,2]
[393575459,1762806427367,-151.0,0.00017164,2]
[393575460,1762806427399,-151.0,0.00017164,2]
[393575461,1762806427867,-151.0,0.00017164,2]
[393575462,1762806427900,-151.0,0.00017164,2]
[393575463,1762806427929,-151.0,0.00017164,2]
[393575464,1762806427957,-151.0,0.00017164,2]
[393575465,1762806428631,1871.57486,7.945e-05,2]
[393575466,1762806430540,205.0,9.8e-05,2]
[393575467,1762806432845,-268.0,0.00017068,2]
[393575468,1762806432875,-151.0,0.00017164,2]
[393575469,1762806432905,-151.0,0.00017164,2]
[393575470,1762806432935,-151.0,0.00017164,2]
[393575471,1762806433015,-151.0,0.00017164,2]
[393575472,1762806433044,-262.91609284,0.00017164,2]
[393575473,1762806433075,-2186.17781432,0.00017174,2]
[393575474,1762806434374,5301.26719975,0.0001305,2]
[393575475,1762806434684,257.81412035,0.000101,2]
[393575476,1762806435846,-1258.89,0.00016733,2]
[393575477,1762806435878,-3357.82218568,0.00017174,2]
[393575478,1762806438501,-252.3310703,0.00017221,2]
[393575480,1762806464528,2195.12767024,0.00013,2]
[393575481,1762806471042,153930.68316362,0.00015,2]
[393575482,1762806471206,50000.0,0.00015,2]
[393575483,1762806471229,50000.0,0.00015,2]
[393575484,1762806471999,-168.89007832,0.00015,2]
[393575485,1762806476107,-246.72526058,0.00015,2]
[393575486,1762806478251,-283.61244424,0.00015,2]
[393575487,1762806479948,-250.0,0.00015,2]
[393575488,1762806482191,-158.72648078,0.00015,2]
[393575489,1762806486624,-7813.83218568,0.00015,2]
[393575490,1762806487055,-10000.01,0.00015,2]
[393575491,1762806488960,-10000.01,0.00015,2]
[393575492,1762806489101,-10000.01,0.00015,2]
[393575493,1762806489230,-10000.01,0.00015,2]
[393575494,1762806489390,-10000.01,0.00015,2]
[393575495,1762806489491,-10000.01,0.00015,2]
[393575496,1762806495235,-10000.01,0.00015,2]
[393575497,1762806495415,-10000.01,0.00015,2]
[393575498,1762806495564,-4828.21177734,0.00015,2]
[393575499,1762806495593,-93.58644532,0.00015719,2]
[393575500,1762806495642,-156.41355468,0.00015719,2]
[393575501,1762806495694,-2240.16,0.00016438,2]
[393575502,1762806495725,-250.0,0.000165,2]
[393575503,1762806495755,-195.0,0.000165,2]
[393575504,1762806495785,-999.0,0.0001667,3]
[393575505,1762806495815,-250.0,0.00016697,2]
[393575506,1762806495845,-931.69,0.0001722,2]
[393575507,1762806495966,-268.31,0.0001722,2]
[393575508,1762806495998,-247.6689297,0.00017221,2]
[393575509,1762806496032,-500.0,0.00017221,2]
[393575510,1762806496063,-500.0,0.00017221,2]
[393575511,1762806496103,-500.0,0.00017221,2]
[393575512,1762806496134,-500.0,0.00017221,2]
[393575513,1762806496474,-500.0,0.00017221,2]
[393575514,1762806496505,-475.95182091,0.00017221,2]
[393575515,1762806496540,-500.0,0.00017221,2]
[393575516,1762806496572,-500.0,0.00017221,2]
[393575517,1762806496607,-500.0,0.00017221,2]
[393575518,1762806496699,-500.0,0.00017221,2]
[393575519,1762806496733,-500.0,0.00017221,2]
[393575520,1762806496767,-500.0,0.00017221,2]
[393575521,1762806496796,-500.0,0.00017221,2]
[393575522,1762806496830,-500.0,0.00017221,2]
[393575523,1762806496869,-500.0,0.00017221,2]
[393575524,1762806496909,-500.0,0.00017221,2]
[393575525,1762806496942,-500.0,0.00017221,2]
[393575526,1762806496979,-500.0,0.00017221,2]
[393575527,1762806497017,-500.0,0.00017221,2]
[393575528,1762806497172,-500.0,0.00017221,2]
[393575529,1762806497204,-500.0,0.00017221,2]
[393575530,1762806497239,-500.0,0.00017221,2]
[393575531,1762806497277,-500.0,0.00017221,2]
[393575532,1762806497318,-500.0,0.00017221,2]
[393575533,1762806497355,-500.0,0.00017221,2]
[393575534,1762806497395,-500.0,0.00017221,2]
[393575535,1762806497431,-500.0,0.00017221,2]
[393575536,1762806497470,-500.0,0.00017221,2]
[393575537,1762806497506,-500.0,0.00017221,2]
[393575538,1762806498027,-308.51667787,0.00017221,2]
[393575539,1762806498041,-0.01,0.00017221,2]
[393575551,1762806570089,150.0,0.00016577,120]
[393575566,1762806632246,-269.05670398,0.00015807,2]
[393575567,1762806632261,-28.90845481,0.00015807,2]
[393575568,1762806632270,-259.13934393,0.00016477,2]
[393575569,1762806632283,-1026.38406455,0.00016477,2]
[393575570,1762806632293,-150.0,0.00016577,2]
[393575571,1762806632303,-298.70164082,0.00016832,2]
[393575572,1762806632315,-1.29835918,0.00016832,2]
[393575573,1762806632324,-513.0,0.00017064,2]
[393575574,1762806632334,-513.0,0.00017102,2]
[393575575,1762806632344,-500.0,0.00017121,2]
[393575576,1762806632353,-86.65194042,0.0001721,2]
[393575577,1762806632365,-213.34805958,0.0001721,2]
[393575578,1762806632375,-300.0,0.0001721,2]
[393575579,1762806632384,-1200.0,0.0001721,2]
[393575580,1762806632394,-300.0,0.0001721,2]
[393575581,1762806632406,-151.0,0.00017211,2]
[393575582,1762806632415,-151.0,0.00017211,2]
[393575583,1762806632426,-151.0,0.00017211,2]
[393575584,1762806632435,-151.0,0.00017211,2]
[393575585,1762806632446,-151.0,0.00017211,2]
[393575586,1762806632456,-151.0,0.00017211,2]
[393575587,1762806632466,-151.0,0.00017211,2]
[393575588,1762806632476,-151.0,0.00017211,2]
[393575589,1762806632486,-151.0,0.00017211,2]
[393575590,1762806632496,-151.0,0.00017211,2]
[393575591,1762806632505,-151.0,0.00017211,2]
[393575592,1762806632514,-653.71760356,0.00017222,2]
[393575593,1762806632530,-977.08836595,0.00017222,2]
[393575594,1762806632541,-672.10828538,0.00017222,2]
[393575595,1762806632552,-168.0,0.00017281,2]
[393575596,1762806632561,-500.0,0.00017323,2]
[393575598,1762806632571,-500.0,0.00017323,2]
[393575600,1762806632580,-161.56551767,0.00017323,2]
[393575602,1762806632588,-150.97925109,0.00017323,2]
[393575604,1762806632598,-500.0,0.00017323,2]
[393575606,1762806632607,-510.11820428,0.00017323,2]
[393575608,1762806632616,-500.0,0.00017323,2]
[393575610,1762806632625,-500.0,0.00017323,2]
[393575612,1762806632634,-500.0,0.00017323,2]
[393575614,1762806632643,-500.0,0.00017323,2]
[393575616,1762806632652,-500.0,0.00017323,2]
[393575618,1762806632661,-10.22874158,0.00017323,2]
[393575620,1762806632675,-489.77125842,0.00017323,2]
[393575622,1762806632684,-500.0,0.00017323,2]
[393575624,1762806632693,-500.0,0.00017323,2]
[393575626,1762806632702,-500.0,0.00017323,2]
[393575628,1762806632711,-500.0,0.00017323,2]
[393575630,1762806632720,-500.0,0.00017323,2]
[393575632,1762806632729,-500.0,0.00017323,2]
[393575634,1762806632738,-500.0,0.00017323,2]
[393575636,1762806632747,-500.0,0.00017323,2]
[393575638,1762806632756,-465.86700926,0.00017323,2]
[393575641,1762806632772,-79.28913331,0.00017323,2]
[393575643,1762806632781,-500.0,0.00017323,2]
[393575644,1762806632790,-201.42613744,0.00017323,2]
[393575646,1762806632800,-298.57386256,0.00017323,2]
[393575648,1762806632810,-500.0,0.00017323,2]
[393575650,1762806632819,-500.0,0.00017323,2]
[393575652,1762806632829,-500.0,0.00017323,2]
[393575654,1762806632846,-500.0,0.00017323,2]
[393575656,1762806632855,-284.10191138,0.00017323,2]
[393575659,1762806632867,-215.89808862,0.00017323,2]
[393575661,1762806632877,-500.0,0.00017323,2]
[393575663,1762806632887,-500.0,0.00017323,2]
[393575665,1762806632896,-500.0,0.00017323,2]
[393575667,1762806632906,-500.0,0.00017323,2]
[393575668,1762806632916,-500.0,0.00017323,2]
[393575671,1762806632926,-500.0,0.00017323,2]
[393575673,1762806632935,-500.0,0.00017323,2]
[393575675,1762806632944,-123.76565009,0.00017323,2]
[393575677,1762806632955,-376.23434991,0.00017323,2]
[393575679,1762806632964,-139.48124746,0.00017323,2]
[393575681,1762806632975,-360.51875254,0.00017323,2]
[393575683,1762806632984,-500.0,0.00017323,2]
[393575685,1762806632993,-611.84751972,0.00017323,2]
[393575687,1762806633002,-500.0,0.00017323,2]
[393575689,1762806633011,-199.94372015,0.00017323,2]
[393575691,1762806633022,-300.05627985,0.00017323,2]
[393575693,1762806633032,-563.26,0.00017324,2]
[393575695,1762806633041,-629.35,0.00017324,2]
[393575697,1762806633051,-157.33372015,0.00017324,2]
[393575699,1762806633063,-42.66627985,0.00017324,2]
[393575701,1762806633073,-280.7746334,0.00017324,2]
[393575702,1762806633085,-2195.2353666,0.00017324,2]
[393575703,1762806633096,-721.6,0.00017324,2]
[393575704,1762806633106,-150.0,0.00017332,2]
[393575705,1762806633116,-500.0,0.00017332,2]
[393575706,1762806633126,-150.0,0.00017332,2]
[393575707,1762806633135,-152.27420197,0.00017332,2]
[393575708,1762806633144,-150.0,0.00017332,2]
[393575709,1762806633154,-500.0,0.00017332,2]
[393575710,1762806633164,-150.0,0.00017332,2]
[393575711,1762806633174,-162.78150409,0.00017332,2]
[393575712,1762806633183,-168.0,0.00017332,2]
[393575713,1762806633192,-1474.71302731,0.00017357,2]
[393575714,1762806633203,-2722.50142428,0.00017357,2]
[393575715,1762806633215,-6635.50158801,0.00017357,2]
[393575716,1762806633225,-500.0,0.00017373,2]
[393575717,1762806633236,-168.0,0.00017374,2]
[393575718,1762806633246,-250.0,0.00017388,2]
[393575719,1762806633256,-300.0,0.00017388,2]
[393575720,1762806633265,-314.3,0.00017391,2]
[393575721,1762806633275,-5888.0,0.00017395,2]
[393575722,1762806633285,-168.0,0.00017418,2]
[393575723,1762806633294,-254.29024249,0.00017456,2]
[393575724,1762806633304,-150.0,0.00017469,2]
[393575725,1762806633313,-500.0,0.00017469,2]
[393575726,1762806633322,-150.0,0.00017469,2]
[393575727,1762806633333,-500.0,0.00017469,2]
[393575728,1762806633342,-150.0,0.00017469,2]
[393575729,1762806633352,-168.0,0.00017472,2]
[393575730,1762806633361,-513.0,0.00017484,2]
[393575731,1762806633372,-168.0,0.00017486,2]
[393575732,1762806633381,-166.66,0.00017497,2]
[393575733,1762806633391,-168.0,0.00017553,2]
[393575734,1762806633400,-721.6,0.00017598,2]
[393575735,1762806633415,-200.0,0.00017606,2]
[393575736,1762806633425,-500.0,0.00017606,2]
[393575737,1762806633435,-200.0,0.00017606,2]
[393575738,1762806633446,-500.0,0.00017606,2]
[393575739,1762806633459,-150.0,0.00017606,2]
[393575740,1762806633469,-249.0,0.0001772,2]
[393575741,1762806633479,-500.0,0.00017743,2]
[393575742,1762806633489,-500.0,0.00017743,2]
[393575743,1762806633498,-200.0,0.00017743,2]
[393575744,1762806633508,-221.96065187,0.00017744,2]
[393575745,1762806633518,-1727.02579728,0.00017779,2]
[393575746,1762806633528,-195.0,0.00017786,2]
[393575747,1762806633538,-300.0,0.00017786,2]
[393575748,1762806633547,-254.89637315,0.00017786,2]
[393575749,1762806633557,-513.0,0.00017788,2]
[393575750,1762806633566,-1739.5898,0.000178,2]
[393575751,1762806633576,-158.31321028,0.000178,2]
[393575752,1762806633585,-1000.0,0.000178,2]
[393575753,1762806633595,-2500.0,0.000178,2]
[393575754,1762806633604,-225.55149946,0.000178,2]
[393575755,1762806633614,-6359.66751028,0.000178,2]
[393575756,1762806633623,-6359.66751022,0.00017811,2]
[393575757,1762806633632,-6359.66751022,0.00017822,2]
[393575758,1762806633642,-6359.66751022,0.00017833,2]
[393575759,1762806633652,-166.68,0.00017844,2]
[393575760,1762806633661,-166.66,0.00017844,2]
[393575761,1762806633671,-6359.66751022,0.00017844,2]
[393575762,1762806633683,-6359.66751022,0.00017856,2]
[393575763,1762806633693,-6359.66751022,0.00017867,2]
[393575764,1762806633703,-721.6,0.00017872,2]
[393575765,1762806633711,-500.0,0.00017873,2]
[393575766,1762806633720,-501.0775918,0.00017873,2]
[393575767,1762806633730,-6359.66751022,0.00017878,2]
[393575768,1762806633739,-500.0,0.0001788,2]
[393575769,1762806633749,-500.0,0.0001788,2]
[393575770,1762806633760,-6359.66751022,0.00017889,2]
[393575771,1762806633770,-500.0,0.00017899,2]
[393575772,1762806633780,-12908.4014,0.000179,2]
[393575773,1762806633789,-110689.15386664,0.000179,2]
[393575774,1762806633801,-7978.3871995,0.000179,2]
[393575775,1762806633816,-605.71259571,0.000179,2]
[393575776,1762806633827,-3115.61143538,0.000179,2]
[393575777,1762806633838,-1134.49421316,0.000179,2]
[393575778,1762806633848,-5207.02539024,0.000179,2]
[393575779,1762806633860,-2046.61497081,0.000179,2]
[393575780,1762806633871,-1022.43728,0.000179,2]
[393575781,1762806633882,-13998.37791035,0.000179,2]
[393575782,1762806633896,-26597.56229802,0.000179,2]
[393575784,1762806638154,-500.0,0.00017332,2]
[393575785,1762806638164,-150.0,0.00017332,2]
[393575786,1762806638174,-150.0,0.00017332,2]
[393575787,1762806638183,-150.0,0.00017332,2]
[393575789,1762806638193,-150.0,0.0001788,2]
[393575790,1762806638203,-150.0,0.0001788,2]
[393575791,1762806638213,-441.12104293,0.00017888,2]
[393575792,1762806638223,-4849.26864352,0.000179,2]
[393575793,1762806638318,-295.56981299,0.000179,2]
[393575794,1762806638330,-3062.37192109,0.000179,2]
[393575795,1762806638342,-1030.04000014,0.000179,2]
[393575796,1762806638354,-1446.62639381,0.000179,2]
[393575797,1762806638366,-520.24222502,0.000179,2]
[393575798,1762806638378,-2015.67736254,0.000179,2]
[393575799,1762806638390,-3491.59084886,0.000179,2]
[393575800,1762806638405,-1109.46875634,0.000179,2]
[393575801,1762806638417,-229783.76687588,0.000179,2]
[393575802,1762806638427,-150.75616644,0.000179,2]
[393575803,1762806638438,-5000.0,0.000179,2]
[393575804,1762806638448,-343.65406516,0.000179,2]
[393575805,1762806638458,-6359.66751022,0.000179,2]
[393575806,1762806638468,-1000.0,0.00017921,2]
[393575807,1762806638478,-500.0,0.00017982,2]
[393575809,1762806638490,-5544.0,0.00017986,2]
[393575810,1762806638500,-524.89,0.00017999,2]
[393575812,1762806638510,-500.0,0.00017999,2]
[393575814,1762806638520,-500.0,0.00017999,2]
[393575815,1762806638530,-500.0,0.00017999,2]
[393575816,1762806638541,-500.0,0.00017999,2]
[393575818,1762806638551,-500.0,0.00017999,2]
[393575820,1762806638560,-500.0,0.00017999,2]
[393575822,1762806638570,-500.0,0.00017999,2]
[393575823,1762806638580,-500.0,0.00017999,2]
[393575824,1762806638590,-500.0,0.00017999,2]
[393575825,1762806638600,-500.0,0.00017999,2]
[393575826,1762806638610,-439.74443674,0.00017999,2]
[393575827,1762806638620,-2366126.27610801,0.00018,2]
[393575828,1762806640314,-150.0,0.0001788,2]
[393575829,1762806640324,-150.0,0.0001788,2]
[393575830,1762806640333,-220.0,0.00017903,2]
[393575831,1762806640343,-1030.93229795,0.00018,2]
[393575832,1762806640353,-19998.65213997,0.00018,2]
[393575833,1762806640371,-915.176505,0.00018,2]
[393575834,1762806640519,-491.72619306,0.00018,2]
[393575835,1762806640531,-329.0207687,0.00018,2]
[393575836,1762806640542,-2172.95400006,0.00018,2]
[393575837,1762806640663,-2822.21558554,0.00018,2]
[393575838,1762806640679,-502.7286811,0.00018,2]
[393575839,1762806640689,-504.28224,0.00018,2]
[393575840,1762806640699,-926.43124995,0.00018,2]
[393575841,1762806640710,-358.01,0.00018,2]
[393575842,1762806640721,-880.0301178,0.00018,2]
[393575845,1762806640736,-33080.22125848,0.00018,2]
[393575846,1762806640747,-1838.00964857,0.00018,2]
[393575847,1762806640758,-1796.63245878,0.00018,2]
[393575848,1762806640773,-2894.53588966,0.00018,2]
[393575855,1762806645336,-164.00375501,0.00016732,2]
[393575856,1762806645346,-59001.20631881,0.00018,2]
[393575857,1762806645485,-2145.6,0.00018,2]
[393575858,1762806645500,-999.0,0.00018,2]
[393575860,1762806646386,-450.073996,0.00017322,2]
[393575861,1762806646553,-54.94335318,0.00017322,2]
[393575862,1762806646563,-1000.0,0.000178,2]
[393575863,1762806646573,-2143.12791061,0.00018,2]
[393575864,1762806646584,-727.41681527,0.00018,2]
[393575865,1762806646595,-2442.52823143,0.00018,2]
[393575866,1762806646606,-1350.85938958,0.00018,2]
[393575867,1762806646990,-13558.37591455,0.00018,2]
[393575868,1762806647001,-3712.08920011,0.00018,2]
[393575874,1762807236109,-2565.995404,0.00016488,2]
[393575875,1762807236138,-301.0,0.00016488,2]
[393575876,1762807236174,-306.0,0.00016571,2]